Cogmind - Beta 10.1 @@@ ROGUE MODE // 2020.09.25 @ 17:39:59 Player: Torako Result: Destroyed by G-73 Enforcer with Phase Gun Performance ------------- Evolutions (8) 4000 Regions Visited (19) 3800 Robots Destroyed (250) 1250 Value Destroyed (11703) 11703 Prototype IDs (10) 200 Alien Tech Used (0) 0 Bonus (4124) 4124 TOTAL SCORE: 25077 Bonus ------- High Alert Combat Kills 207 Follower Combat Kills 725 Entered Garrisons 1400 Used RIF Installer 3500 Friendly Fire -1708 Cogmind --------- Core Integrity 0/1450 Matter 300/300 Energy 13/100 System Corruption 5% Temperature Cool (0) Movement Rolling (110) Ox1 Location -2/Research Parts ------- > --- POWER (1) -------- (None) > --- PROPULSION (4) --- Compact Wheel > --- UTILITY (16) ----- Medium Storage Unit Medium Storage Unit Relay Coupler [NC] (45) Relay Coupler [NC] (40) Relay Coupler [Swarmer] (54) Relay Coupler [Brawler] (40) Relay Coupler [Sentry] (33) Relay Coupler [Sentry] (37) Relay Coupler [Hunter] (32) > --- WEAPON (2) ------- Spear > --- INVENTORY (12) --- Enhanced Quantum Rifle Gamma Bomb Array Peak State ------------ > --- POWER ------------ Reinforced Fission Core > --- PROPULSION ------- Heavy Treads > --- UTILITY ---------- Advanced Heat Sink Advanced Heat Sink Large Storage Unit Large Storage Unit Large Storage Unit High-capacity Storage Unit High-capacity Storage Unit Advanced Signal Interpreter Advanced Targeting Computer Advanced Targeting Computer Advanced Target Analyzer Advanced Target Analyzer Advanced Armor Integrity Analyzer Quantum Capacitor Relay Coupler [Hunter] > --- WEAPON ----------- KE Penetrator Linear Accelerator > --- INVENTORY -------- Micro Fission Core Micro Fission Core Antimatter Reactor Heavy Treads Armored Wheel Armored Wheel Armored Wheel Armored Wheel Centrium Wheel Advanced Heat Sink Advanced Heat Sink Advanced Heat Sink Improved Coolant Injector Improved Particle Charger EM Shield Relay Coupler [NC] Relay Coupler [NC] Relay Coupler [NC] Relay Coupler [Swarmer] Relay Coupler [Sentry] Relay Coupler [Sentry] Relay Coupler [Hunter] HERF Cannon Hypervelocity Mass Driver Hypervelocity Mass Driver Hypervelocity Mass Driver Hypervelocity Mass Driver Hypervelocity Mass Driver Linear Accelerator Linear Accelerator Linear Accelerator Linear Accelerator Gamma Bomb Array Gamma Bomb Array Advanced Remote Datajack [Rating: 115] Favorites ----------- Power Reinforced Deuterium Engine Engine Reinforced Deuterium Engine Power Core Micro Fission Core Reactor Antimatter Reactor Propulsion Light Treads Treads Light Treads Leg Flexi-carbon Leg Wheel Compact Wheel Hover Unit Improved Antigrav System Flight Unit Xenon Bombardment Thruster Utility High-capacity Storage Unit Device Advanced Heat Sink Storage High-capacity Storage Unit Processor Advanced Signal Interpreter Hackware Relay Coupler [Hunter] Protection Improved Medium Armor Plating Weapon Hypervelocity Mass Driver Energy Gun Advanced Beam Rifle Energy Cannon Cooled Particle Cannon Ballistic Gun Hypervelocity Coil Gun Ballistic Cannon Hypervelocity Mass Driver Launcher Mini Grenade Launcher Special Weapon Remote Datajack Slashing Weapon Power Sword Piercing Weapon Enhanced Force Lance Special Melee Weapon Improved Datajack Build | -11 -10 -10 -10 -9 -8 -8 -8 -8 -7 -7 -6 -6 -5 -5 -4 -4 -3 -3 -2 ------- Run | Scr Mat Min Exi Min Mat Gar Mat Gar Fac Gar Fac Gar Fac Gar Fac Gar Res Gar Res Slots Evolved 16 | . . . . . 4 . . . 2 . 2 . 2 . 2 . 2 . 2 Power . | . . . . . . . . . . . . . . . . . . . . Propulsion 2 | . . . . . . . . . . . . . . . . . . . 2 Utility 14 | . . . . . 4 . . . 2 . 2 . 2 . 2 . 2 . . Weapon . | . . . . . . . . . . . . . . . . . . . . Parts Attached 365 | 6 3 12 2 . 14 5 19 8 48 11 11 35 11 27 13 38 26 26 50 Power 27 | 1 . 2 . . 1 . 2 1 4 2 . 3 . 1 1 3 4 1 1 Engine 13 | 1 . 2 . . 1 . 1 . 2 1 . 3 . 1 . . 1 . . Core 9 | . . . . . . . 1 1 2 1 . . . . . 1 2 1 . Reactor 5 | . . . . . . . . . . . . . . . 1 2 1 . 1 Propulsion 88 | 2 . 4 . . 4 2 6 1 12 2 . 7 . 4 1 4 3 11 25 Treads 31 | . . 3 . . 1 2 6 1 2 . . 4 . 4 1 4 3 . . Leg 14 | . . . . . . . . . . . . 2 . . . . . 8 4 Wheel 32 | 2 . 1 . . 3 . . . 10 2 . 1 . . . . . 3 10 Hover 2 | . . . . . . . . . . . . . . . . . . . 2 Flight 9 | . . . . . . . . . . . . . . . . . . . 9 Utility 134 | 1 2 3 2 . 5 1 3 1 17 2 10 9 6 7 7 21 11 9 17 Device 54 | . 1 1 . . 1 . 1 1 7 1 6 3 2 . 3 8 6 6 7 Storage 18 | 1 . 1 2 . 2 . 1 . 1 . . . . 3 . 4 . . 3 Processor 10 | . . . . . 1 . . . 1 . 1 3 . . 1 . 3 . . Hackware 20 | . . . . . . . . . 1 1 . 1 3 2 1 . 1 3 7 Protection 32 | . 1 1 . . 1 1 1 . 7 . 3 2 1 2 2 9 1 . . Artifact . | . . . . . . . . . . . . . . . . . . . . Weapon 116 | 2 1 3 . . 4 2 8 5 15 5 1 16 5 15 4 10 8 5 7 Energy Gun 17 | 2 . 1 . . 1 . 4 . 6 . . 1 . . . 2 . . . Energy Cannon 20 | . . . . . . . . . 4 4 . 3 1 6 . . 2 . . Ballistic Gun 35 | . 1 1 . . 3 1 4 3 1 . 1 8 2 4 1 4 1 . . Ballistic Cannon 13 | . . . . . . . . . . . . . . 1 2 4 3 3 . Launcher 12 | . . 1 . . . 1 . 2 3 1 . 2 . 1 . . . . 1 Special Weapon 9 | . . . . . . . . . 1 . . 1 2 3 . . 1 1 . Impact Weapon . | . . . . . . . . . . . . . . . . . . . . Slashing Weapon 2 | . . . . . . . . . . . . . . . 1 . 1 . . Piercing Weapon 7 | . . . . . . . . . . . . . . . . . . 1 6 Special Melee Weapon 1 | . . . . . . . . . . . . 1 . . . . . . . Unidentified Prototypes 10 | . . . . . 1 . 4 . 4 . . . . . 1 . . . . Parts Lost 170 | . 1 9 . . . 2 6 3 13 6 2 13 . 13 . 26 16 23 37 Power 17 | . . 2 . . . . 2 1 1 1 . 2 . 1 . 3 1 1 2 Propulsion 50 | . . 3 . . . 2 1 . 5 2 . 3 . 4 . 4 3 6 17 Utility 53 | . . 1 . . . . 1 1 3 . 1 2 . . . 12 6 14 12 Weapon 50 | . 1 3 . . . . 2 1 4 3 1 6 . 8 . 7 6 2 6 Highest Loss Streak 15 | . 1 2 . . . 1 2 3 6 3 1 4 . 10 . 13 8 11 15 Average Slot Usage (%) 95 | . 99 95 100 100 98 99 100 98 98 98 100 96 98 95 94 92 89 81 78 Engine 4 | . 14 13 14 14 9 9 8 . 2 1 . 3 5 5 1 . . . . Core 1 | . . . . . . . . 7 4 4 6 2 . . . 2 2 4 2 Treads 7 | . . 10 28 28 5 10 18 18 3 . . 5 11 7 5 5 3 . . Wheel 5 | . 28 17 . . 12 7 . . 11 14 13 4 . . . . . 3 2 Device 6 | . 1 12 6 . 4 . 2 8 6 . 8 5 10 1 6 14 16 14 5 Storage 28 | . 14 14 21 28 35 36 36 36 37 38 33 33 29 29 26 26 23 17 4 Processor 13 | . . . . . 8 9 9 9 9 7 13 19 23 17 20 21 22 14 7 Hackware 5 | . . . . . . . . . . 7 6 6 4 10 10 5 5 12 35 Protection 4 | . 11 1 . . 4 9 6 . 4 7 3 . . 8 9 4 . . . Energy Gun 2 | . 26 2 . . . . 5 10 3 . . . . . . . . . . Energy Cannon 2 | . . . . . . . . . 7 14 9 2 . 1 . . . . . Ballistic Gun 6 | . 1 17 14 14 16 17 12 6 2 . 3 7 7 5 4 4 3 . . Ballistic Cannon 1 | . . . . . . . . . . . . . . 2 5 4 2 6 . Naked Turns . | . . . . . . . . . . . . . . . . . . . . Heaviest Build 204 | 13 16 19 69 69 142 146 148 140 181 171 177 178 177 202 204 197 164 158 82 Greatest Support 90 | 26 26 40 40 40 40 40 40 40 40 32 20 60 60 60 75 75 84 70 90 Greatest Overweight (x) 26 | 1 . 1 1 1 8 9 3 3 9 8 8 16 2 6 3 4 2 26 11 Average Overweight (x) 3 | . . . . 1 3 5 3 3 5 6 8 6 2 4 2 2 1 2 . Largest Inventory Capacity 44 | 6 6 8 20 20 36 36 36 36 42 42 42 42 42 44 42 42 38 38 22 Average Capacity 34 | 5 6 7 14 20 35 36 36 36 41 42 42 42 42 42 42 40 38 28 10 Most Carried 44 | 6 6 8 12 18 30 36 36 36 42 42 42 42 42 44 42 42 38 32 21 Average Carried 32 | 4 5 5 7 10 23 35 35 35 38 37 40 40 40 41 41 37 36 24 8 Final Capacity 42 | 6 6 8 20 20 36 36 36 36 42 42 42 42 42 42 42 38 38 22 12 Final Carried 42 | 6 6 5 9 18 30 36 36 36 42 37 42 42 42 42 42 38 31 22 2 Class Distribution -------------------- 62% | Hauler-Mutant 10% | Bothacker-Mutant 10% | Mutant 6% | Botlord-Mutant 5% | Scavenger-Mutant Dominant Class ---------------- Mutant | -10/Materials Mutant | -10/Mines Hauler-Mutant | -10/Exiles Hauler-Mutant | -9/Mines Hauler-Mutant | -8/Materials Hauler-Mutant | -8/Garrison Hauler-Mutant | -8/Materials Hauler-Mutant | -8/Garrison Hauler-Mutant | -7/Factory Hauler-Mutant | -7/Garrison Bothacker-Mutant | -6/Factory Bothacker-Mutant | -6/Garrison Hauler-Skirmisher | -5/Factory Hauler-Mutant | -5/Garrison Hauler-Mutant | -4/Factory Hauler-Mutant | -4/Garrison Hauler-Mutant | -3/Research Scavenger-Mutant | -3/Garrison Scavenger-Sprinter | -2/Research Resources | -11 -10 -10 -10 -9 -8 -8 -8 -8 -7 -7 -6 -6 -5 -5 -4 -4 -3 -3 -2 ----------- Run | Scr Mat Min Exi Min Mat Gar Mat Gar Fac Gar Fac Gar Fac Gar Fac Gar Res Gar Res Matter Collected 7958 | 260 30 119 . 42 392 94 712 75 744 108 181 583 188 647 446 1431 458 754 694 Remotely . | . . . . . . . . . . . . . . . . . . . . Salvage Created 12547 | 77 148 126 . . 474 171 1194 229 1648 265 460 768 107 1068 684 1588 733 1075 1732 Parts 596 | 2 12 10 . . 23 6 62 17 87 14 18 41 7 39 27 50 52 43 86 Haulers Intercepted 5 | . . . . . 1 . 2 . 2 . . . . . . . . . . Recyclers Shooed 6 | . . . . . 1 . 1 . 2 . . . . . 1 . . . 1 Parts Field Recycled . | . . . . . . . . . . . . . . . . . . . . Retrieved Matter . | . . . . . . . . . . . . . . . . . . . . Parts Self-Destructed . | . . . . . . . . . . . . . . . . . . . . Prevented . | . . . . . . . . . . . . . . . . . . . . Kills | -11 -10 -10 -10 -9 -8 -8 -8 -8 -7 -7 -6 -6 -5 -5 -4 -4 -3 -3 -2 ------- Run | Scr Mat Min Exi Min Mat Gar Mat Gar Fac Gar Fac Gar Fac Gar Fac Gar Res Gar Res Combat Hostiles Destroyed 204 | . 3 6 . . 5 5 24 13 23 8 7 17 1 12 8 24 9 20 19 Melee 32 | . . . . . . . . . . . . . . . . 2 1 11 18 Guns 75 | . 3 5 . . 5 . 24 4 8 . 2 5 1 5 3 8 2 . . Cannons 65 | . . . . . . . . . 15 5 5 3 . 5 5 12 6 9 . AOE 29 | . . 1 . . . 5 . 9 . 3 . 9 . 1 . . . . 1 Classes Destroyed 16 | 2 2 2 . . 4 2 . . 2 . . 1 . . . . . 1 . Worker 12 | . . . . . . . . . 3 . . . . . . . 4 . 5 Builder 5 | . . . . . 2 . 1 . . . . . . . . . 2 . . Tunneler 2 | 1 . . . . . . . . . . . . . . 1 . . . . Hauler 5 | . . . . . 1 . 2 . 2 . . . . . . . . . . Recycler 12 | 1 . . . . 1 . . . 5 . . . . . 1 . 1 . 3 Watcher 7 | . 2 . . . 1 . 1 . 2 . . . 1 . . . . . . Swarmer 59 | . . 4 . . . . 6 8 4 3 . 7 . 2 . 7 . 8 10 Grunt 71 | . 3 1 . . 3 2 9 4 10 4 5 7 . . 2 6 1 10 4 Brawler 3 | . . . . . . 1 1 . 1 . . . . . . . . . . Duelist 10 | . . . . . . 1 3 1 1 . . . . 1 . 2 . . 1 Sentry 27 | . . . . . 1 . 5 . 2 . 1 . . 8 3 4 . . 3 Specialist 1 | . . . . . . . . . . . . . . . . . . 1 . Hunter 8 | . . . . . 1 1 . . 1 1 1 2 1 . . . . . . Programmer 21 | . . . . . . . . . 4 . . . . . 3 4 7 . 3 Behemoth 6 | . . . . . . . . . . . . 2 . 1 . 1 1 1 . Assembled 1 | . . 1 . . . . . . . . . . . . . . . . . Best Kill Streak 17 | 2 2 2 . . 3 5 6 10 4 3 3 6 1 5 4 5 5 5 17 Combat Bots Only 12 | . 2 2 . . 2 5 6 10 3 3 3 6 1 5 2 5 3 5 12 Max Kills in Single Turn 3 | 2 1 1 . . 1 3 2 3 2 2 1 2 1 2 1 2 2 1 1 Gunslinging 1 | . . . . . . . 1 . . . . . . 1 . . . . . Exploded 3 | . . 1 . . . 3 . 3 . 2 . 2 . 1 . . . . 1 Melee 1 | . . . . . . . . . . . . . . . . 1 1 1 1 Uniques/NPCs Destroyed . | . . . . . . . . . . . . . . . . . . . . Combat | -11 -10 -10 -10 -9 -8 -8 -8 -8 -7 -7 -6 -6 -5 -5 -4 -4 -3 -3 -2 -------- Run | Scr Mat Min Exi Min Mat Gar Mat Gar Fac Gar Fac Gar Fac Gar Fac Gar Res Gar Res Damage Taken 29460 | . 263 644 . . 295 219 1350 296 1850 757 713 2068 64 3033 710 6795 3714 2615 4074 Core 4716 | . 122 112 . . 64 38 135 86 161 128 171 207 . 460 177 633 408 364 1450 Absorbed by Shields 195 | . . . . . . . . . . . . 94 . 70 . 31 . . . Reduced by Siege Mode 157 | . . . . . . . . . . . . . . . . 157 . . . Core Remaining (%) 47 | 100 . . . 6 . . . 41 . 58 . 55 . 54 . 29 . 40 . Volleys Fired 800 | 5 17 39 . . 32 7 92 21 100 32 38 62 18 101 26 117 48 40 5 Largest 2 | 2 2 2 . . 2 2 2 2 2 2 2 2 2 2 2 2 2 2 1 Hottest 144 | 100 100 70 . . 50 50 112 117 111 135 105 140 70 101 132 144 132 132 80 Shots Fired 1377 | 10 34 65 . . 64 12 184 35 184 49 68 98 21 133 49 223 71 72 5 Gun 827 | 10 34 63 . . 64 10 184 28 93 . 14 62 6 61 20 150 28 . . Cannon 495 | . . . . . . . . . 87 47 54 29 3 60 29 73 43 67 3 Launcher 22 | . . 2 . . . 2 . 7 1 2 . 5 . 1 . . . . 2 Special 33 | . . . . . . . . . 3 . . 2 12 11 . . . 5 . Kinetic 836 | . 5 45 . . 64 10 142 7 36 . 14 53 6 74 49 205 56 67 3 Thermal 469 | 10 29 18 . . . . 42 21 137 47 54 29 3 47 . 18 14 . . Explosive 20 | . . 2 . . . 2 . 7 1 2 . 5 . 1 . . . . . Electromagnetic 19 | . . . . . . . . . 7 . . 9 . . . . 1 . 2 Robot Hit Streak 37 | 6 6 14 . . 17 3 14 9 20 13 9 18 8 18 14 37 25 4 4 Robot Miss Streak 6 | 1 1 5 . . 5 2 3 2 6 2 3 4 2 5 2 4 2 3 2 Penetration Max 1 | . . . . . . . . . . . . . . . 1 1 1 . . Secondary Targets 8 | . 1 1 . . . . 4 . . . . . . 1 . 1 . . . Max Gunslinging Chain 1 | . 1 1 . . . . 1 . . . . . . 1 . 1 . . . Capacitor 63 | . . . . . . . . . . . . . 3 47 . . 13 . . Shots Hit Robots 1068 | 8 23 34 . . 40 6 139 19 123 31 40 61 14 96 33 193 72 63 73 Core Hits 483 | 3 8 14 . . 15 11 54 23 54 13 15 37 2 30 15 73 29 33 54 Critical Hits 168 | . . . . . 1 . 2 . 2 3 1 2 1 29 19 53 9 30 16 Critical Kills 50 | . . . . . . . . . 1 2 . . 1 6 9 11 4 10 6 Critical Parts Destroyed 93 | . . . . . 1 . 2 . 1 1 1 2 . 15 10 35 3 12 10 Melee Attacks 157 | . . . . . . . . . . . . 1 . . . . 14 38 104 Impact . | . . . . . . . . . . . . . . . . . . . . Slashing 14 | . . . . . . . . . . . . . . . . . 14 . . Piercing 142 | . . . . . . . . . . . . . . . . . . 38 104 Sneak Attacks 22 | . . . . . . . . . . . . . . . . . 3 . 19 Combat Hostiles 2 | . . . . . . . . . . . . . . . . . . . 2 Follow-up Attacks 9 | . . . . . . . . . . . . . . . . . . . 9 Damage Inflicted 28404 | 114 280 483 . . 606 410 2163 935 2840 907 1064 2410 57 1621 586 3968 2997 1889 5074 Guns 10241 | 114 280 291 . . 606 98 2163 289 1419 . 240 1059 30 505 236 2248 663 . . Cannons 8715 | . . . . . . . . . 1406 686 824 385 27 1046 350 1626 1634 694 37 Explosions 2637 | . . 190 . . . 312 . 646 15 221 . 966 . 70 . . . . 217 Melee 6626 | . . . . . . . . . . . . . . . . . 611 1195 4820 Ramming 185 | . . 2 . . . . . . . . . . . . . 94 89 . . Kinetic 11667 | . 15 217 . . 606 98 1687 65 549 . 240 885 30 648 586 3519 1791 694 37 Thermal 7175 | 114 265 74 . . . . 476 224 2233 686 824 512 27 903 . 355 482 . . Explosive 2293 | . . 190 . . . 312 . 646 15 221 . 839 . 70 . . . . . Electromagnetic 458 | . . . . . . . . . 43 . . 174 . . . . 24 . 217 Impact . | . . . . . . . . . . . . . . . . . . . . Slashing 611 | . . . . . . . . . . . . . . . . . 611 . . Piercing 6015 | . . . . . . . . . . . . . . . . . . 1195 4820 Highest Corruption 21 | . 1 1 1 1 . . . . 10 10 1 2 . . 7 21 18 18 5 Average Corruption 7 | . 1 1 1 1 . . . . 6 10 1 2 . . 4 20 11 18 3 Corruption Purged . | . . . . . . . . . . . . . . . . . . . . Effects 362 | . 2 3 2 . . . . . 43 25 2 15 . . 16 146 36 55 17 Message Errors 64 | . 1 . 1 . . . . . 8 4 2 9 . . 2 19 6 11 1 Matter Fused 53 | . . . . . . . . . 8 2 . . . . 4 27 3 5 4 Heat Flow Errors 34 | . . . . . . . . . 5 . . 2 . . 3 16 4 2 2 Energy Discharges 27 | . . 1 1 . . . . . 4 2 . 1 . . 2 9 4 2 1 Parts Rejected 3 | . . . . . . . . . 1 1 . . . . . . . 1 . Data Loss (minor) 28 | . . . . . . . . . 2 2 . 2 . . 3 7 2 5 5 Data Loss (major) 10 | . . . . . . . . . 1 1 . . . . . 4 2 2 . Misfires 9 | . . . . . . . . . 3 . . . . . . 4 1 1 . Alerts 3 | . . . . . . . . . . . . . . . . 2 . 1 . Misdirections 15 | . . . . . . . . . . 1 . . . . . 8 3 3 . Targeting Errors 101 | . 1 2 . . . . . . 10 10 . 1 . . 2 40 10 21 4 Weapon Failures 15 | . . . . . . . . . 1 2 . . . . . 10 1 1 . Overload Shots . | . . . . . . . . . . . . . . . . . . . . Overflow Damage 455 | . . . . . . . . 25 30 15 21 47 . . . 28 184 50 55 Projectiles 181 | . . . . . . . . . 30 15 21 . . . . 28 87 . . Explosions 72 | . . . . . . . . 25 . . . 47 . . . . . . . Melee 202 | . . . . . . . . . . . . . . . . . 97 50 55 Knockbacks 34 | . . . . . . . . . . . . . . . 5 9 15 3 2 Impact 2 | . . . . . . . . . . . . . . . . 1 1 . . Kinetic 31 | . . . . . . . . . . . . . . . 5 8 13 3 2 Secondary 1 | . . . . . . . . . . . . . . . . . 1 . . Self-Inflicted Damage 230 | . . 11 . . . 11 . 27 . . . 82 . . 78 . . . 21 Shots 11 | . . 1 . . . 1 . 1 . . . 3 . . 1 . . . 4 Rammed 16 | . . 1 . . . . . . . . . . . . . 8 7 . . Targets Rammed 17 | . . 1 . . . . . . . . . . . . . 9 7 . . Kicked . | . . . . . . . . . . . . . . . . . . . . Crushed 1 | . . . . . . . . . . . . . . . . 1 . . . Highest Temperature 600 | 195 276 305 . . 30 13 261 7 373 331 210 192 10 352 600 226 311 198 111 Average Temperature 92 | 100 99 147 . . 12 3 27 2 74 161 79 63 6 111 127 105 129 103 41 Received Heat Transfer 4316 | . 84 277 . . 99 45 432 99 255 207 213 282 9 393 30 1015 240 330 306 Effects 3 | . . . . . . . . . . 1 . . . 1 1 . . . . Shutdowns 1 | . . . . . . . . . . . . . . . 1 . . . . Energy Bleed 1 | . . . . . . . . . . . . . . 1 . . . . . Matter Decay 1 | . . . . . . . . . . 1 . . . . . . . . . Siege Activations 6 | . . . . . . . . . . . . . . . . 6 . . . Total Turns 79 | . . . . . . . . . . . . . . . . 79 . . . Longest Duration 31 | . . . . . . . . . . . . . . . . 31 . . . Robots Corrupted . | . . . . . . . . . . . . . . . . . . . . Combat Hostiles . | . . . . . . . . . . . . . . . . . . . . Parts Fried 2 | . . . . . . . . . . . . 1 . . . 1 . . . Impact Corruptions 2 | . . . . . . . . . . . . . . . . 2 . . . Robots Melted 1 | . . . . . . . . . . . . . . 1 . . . . . Combat Hostiles 1 | . . . . . . . . . . . . . . 1 . . . . . Parts Melted 16 | 1 . . . . . . . 1 6 . 3 1 . 2 . 1 1 . . Heat Transferred 11565 | 333 777 186 . . . . 1036 444 3330 999 1147 659 37 1251 . 666 700 . . Parts Sabotaged . | . . . . . . . . . . . . . . . . . . . . Parts Stolen . | . . . . . . . . . . . . . . . . . . . . Parts Stripped . | . . . . . . . . . . . . . . . . . . . . Power Chain Reactions 1 | . . . . . . . . . . . . 1 . . . . . . . Missiles Intercepted . | . . . . . . . . . . . . . . . . . . . . Alert | -11 -10 -10 -10 -9 -8 -8 -8 -8 -7 -7 -6 -6 -5 -5 -4 -4 -3 -3 -2 ------- Run | Scr Mat Min Exi Min Mat Gar Mat Gar Fac Gar Fac Gar Fac Gar Fac Gar Res Gar Res Peak Influence 687 | 10 77 91 . . 248 357 598 687 460 410 407 435 322 299 311 333 219 129 167 Initial 388 | . 6 30 . . . 96 173 388 360 233 214 191 214 225 154 121 186 . 72 Average 219 | 2 45 35 . . 100 245 338 515 283 314 289 365 167 253 158 215 144 66 72 Maximum Alert Level 2 | . . . . . 1 1 2 2 2 2 2 2 1 1 1 1 1 . . Low Security (%) 45 | 100 100 100 . 100 75 48 26 . 21 . . 2 65 15 72 39 80 100 100 Level 1 42 | . . . . . 24 51 43 20 67 84 79 38 34 84 27 60 19 . . Level 2 11 | . . . . . . . 30 79 11 15 20 59 . . . . . . . Level 3 . | . . . . . . . . . . . . . . . . . . . . Level 4 . | . . . . . . . . . . . . . . . . . . . . Level 5 . | . . . . . . . . . . . . . . . . . . . . High Security . | . . . . . . . . . . . . . . . . . . . . Max Security . | . . . . . . . . . . . . . . . . . . . . Squads Dispatched 30 | . 2 . . . 3 . 2 . 7 . 6 . 3 . 2 . 3 . 2 Investigation 10 | . 1 . . . 1 . . . 2 . 3 . 2 . . . . . 1 Extermination 7 | . . . . . . . . . 2 . 1 . . . 2 . 1 . 1 Reinforcement 8 | . 1 . . . 1 . 1 . 2 . 1 . 1 . . . 1 . . Assault 1 | . . . . . . . 1 . . . . . . . . . . . . Garrison 4 | . . . . . 1 . . . 1 . 1 . . . . . 1 . . Intercept . | . . . . . . . . . . . . . . . . . . . . Construction Impeded 1 | . . . . . . . . . . . . . . . . . 1 . . Haulers Reinforced 1 | . . . . . . . . . . . 1 . . . . . . . . Stealth | -11 -10 -10 -10 -9 -8 -8 -8 -8 -7 -7 -6 -6 -5 -5 -4 -4 -3 -3 -2 --------- Run | Scr Mat Min Exi Min Mat Gar Mat Gar Fac Gar Fac Gar Fac Gar Fac Gar Res Gar Res Distress Signals 11 | . 1 . . . 2 . 2 . 2 . . . 1 . . . 2 . 1 Communications Jammed . | . . . . . . . . . . . . . . . . . . . . Distress Signals . | . . . . . . . . . . . . . . . . . . . . Times Spotted 352 | . 9 15 . . 13 9 43 13 36 10 7 22 12 23 10 33 22 37 38 Peak Tracking Total 13 | . 2 10 . . 4 5 4 5 5 6 3 7 3 6 3 7 8 13 11 Tactical Retreats 42 | . 1 3 . . 1 . 2 1 3 3 . 2 . . . 8 . 7 11 Traps | -11 -10 -10 -10 -9 -8 -8 -8 -8 -7 -7 -6 -6 -5 -5 -4 -4 -3 -3 -2 ------- Run | Scr Mat Min Exi Min Mat Gar Mat Gar Fac Gar Fac Gar Fac Gar Fac Gar Res Gar Res Traps Triggered 31 | . 1 . . . . 7 . 1 1 2 . 3 . 6 . 6 1 1 2 Indirectly . | . . . . . . . . . . . . . . . . . . . . Trap Hack Attempts . | . . . . . . . . . . . . . . . . . . . . Triggered . | . . . . . . . . . . . . . . . . . . . . Disarmed . | . . . . . . . . . . . . . . . . . . . . Reprogrammed . | . . . . . . . . . . . . . . . . . . . . Reused . | . . . . . . . . . . . . . . . . . . . . Traps Extracted . | . . . . . . . . . . . . . . . . . . . . Installed . | . . . . . . . . . . . . . . . . . . . . Triggered . | . . . . . . . . . . . . . . . . . . . . Machines | -11 -10 -10 -10 -9 -8 -8 -8 -8 -7 -7 -6 -6 -5 -5 -4 -4 -3 -3 -2 ---------- Run | Scr Mat Min Exi Min Mat Gar Mat Gar Fac Gar Fac Gar Fac Gar Fac Gar Res Gar Res Machines Disabled 16 | . . . . . . . 2 1 3 1 . 1 . 3 3 . 1 1 . Max in Single Turn 1 | . . . . . . . 1 1 1 1 . 1 . 1 1 . 1 1 . Garrison Relay 6 | . . . . . . . . 1 . 1 . 1 . 2 . . . 1 . Phase Generator 1 | . . . . . . . . . . . . . . . . 1 . . . Machines Sabotaged . | . . . . . . . . . . . . . . . . . . . . Garrisons Compromised . | . . . . . . . . . . . . . . . . . . . . Overloaded Fab Kills . | . . . . . . . . . . . . . . . . . . . . Fab Network Shutdowns 1 | . . . . . . . . . . . . . 1 . . . . . . Hacking | -11 -10 -10 -10 -9 -8 -8 -8 -8 -7 -7 -6 -6 -5 -5 -4 -4 -3 -3 -2 --------- Run | Scr Mat Min Exi Min Mat Gar Mat Gar Fac Gar Fac Gar Fac Gar Fac Gar Res Gar Res Machines Accessed 32 | . 3 . 1 . 4 . 6 . 3 . 3 . 3 . 5 . 2 . 2 Terminals 22 | . 3 . . . 3 . 5 . 2 . 2 . . . 4 . 1 . 2 Fabricators 2 | . . . . . . . . . . . . . 2 . . . . . . Repair Stations . | . . . . . . . . . . . . . . . . . . . . Recycling Units . | . . . . . . . . . . . . . . . . . . . . Scanalyzers . | . . . . . . . . . . . . . . . . . . . . Garrison Access 7 | . . . . . 1 . 1 . 1 . 1 . 1 . 1 . 1 . . Total Hacks 91 | . 12 . 5 . 10 . 16 . 11 . 9 . 6 . 11 . 3 . 8 Successful 42 | . 5 . 5 . 5 . 8 . 7 . 3 . 3 . 4 . 2 . . Failed 49 | . 7 . . . 5 . 8 . 4 . 6 . 3 . 7 . 1 . 8 Catastrophic 8 | . 1 . . . . . . . 1 . 3 . 1 . 2 . . . . Database Lockouts . | . . . . . . . . . . . . . . . . . . . . Manual 46 | . 10 . . . 8 . 13 . 8 . 2 . . . 3 . 2 . . Terminals 67 | . 12 . . . 8 . 14 . 8 . 6 . . . 9 . 2 . 8 Fabricators 5 | . . . . . . . . . . . . . 5 . . . . . . Repair Stations . | . . . . . . . . . . . . . . . . . . . . Recycling Units . | . . . . . . . . . . . . . . . . . . . . Scanalyzers . | . . . . . . . . . . . . . . . . . . . . Garrison Access 14 | . . . . . 2 . 2 . 3 . 3 . 1 . 2 . 1 . . Terminal Hacks 21 | . 3 . 5 . 1 . 4 . 4 . 2 . . . 2 . . . . Record 5 | . . . 5 . . . . . . . . . . . . . . . . Part Schematic 1 | . . . . . . . . . . . 1 . . . . . . . . Branch Access Points 2 | . . . . . . . . . 1 . . . . . 1 . . . . Terminal Index 3 | . 1 . . . . . 1 . 1 . . . . . . . . . . Garrison Index 1 | . . . . . . . 1 . . . . . . . . . . . . Unreport Threat 1 | . . . . . . . . . 1 . . . . . . . . . . Recall Investigation 1 | . 1 . . . . . . . . . . . . . . . . . . Hauler Manifests 4 | . 1 . . . 1 . 1 . 1 . . . . . . . . . . Zone Layout 3 | . . . . . . . 1 . . . 1 . . . 1 . . . . Fabricator Hacks 2 | . . . . . . . . . . . . . 2 . . . . . . Load Schematic 1 | . . . . . . . . . . . . . 1 . . . . . . Build 1 | . . . . . . . . . . . . . 1 . . . . . . Repair Station Hacks . | . . . . . . . . . . . . . . . . . . . . Recycling Unit Hacks . | . . . . . . . . . . . . . . . . . . . . Scanalyzer . | . . . . . . . . . . . . . . . . . . . . Garrison Access Hacks 7 | . . . . . 1 . 1 . 1 . 1 . 1 . 1 . 1 . . Unlock Access 7 | . . . . . 1 . 1 . 1 . 1 . 1 . 1 . 1 . . Unauthorized Hacks 12 | . 2 . . . 3 . 3 . 2 . . . . . 1 . 1 . . Terminals 10 | . 2 . . . 2 . 2 . 2 . . . . . 1 . 1 . . Track 5 | . 2 . . . 2 . . . 1 . . . . . . . . . . Botnet 5 | . . . . . . . 2 . 1 . . . . . 1 . 1 . . Fabricators . | . . . . . . . . . . . . . . . . . . . . Repair Stations . | . . . . . . . . . . . . . . . . . . . . Recycling Units . | . . . . . . . . . . . . . . . . . . . . Scanalyzers . | . . . . . . . . . . . . . . . . . . . . Garrison Access 2 | . . . . . 1 . 1 . . . . . . . . . . . . Reprogram 2 | . . . . . 1 . 1 . . . . . . . . . . . . Data Cores Recovered . | . . . . . . . . . . . . . . . . . . . . Used . | . . . . . . . . . . . . . . . . . . . . Hacking Detections 26 | . 3 . . . 3 . 4 . 3 . 3 . 2 . 4 . 2 . 2 Full Trace Events 10 | . 1 . . . 1 . . . 2 . 3 . 2 . . . . . 1 Feedback Events 3 | . . . . . . . . . . . 2 . . . . . . . 1 Corruption 3 | . . . . . . . . . . . 2 . . . . . . . 1 Feedback Blocked . | . . . . . . . . . . . . . . . . . . . . Robot Schematics Acquired . | . . . . . . . . . . . . . . . . . . . . Robots Built . | . . . . . . . . . . . . . . . . . . . . Matter . | . . . . . . . . . . . . . . . . . . . . Time . | . . . . . . . . . . . . . . . . . . . . Total Robot Build Rating . | . . . . . . . . . . . . . . . . . . . . Part Schematics Acquired 1 | . . . . . . . . . . . 1 . . . . . . . . Parts Built 2 | . . . . . . . . . . . . . 2 . . . . . . Matter 234 | . . . . . . . . . . . . . 234 . . . . . . Time 58 | . . . . . . . . . . . . . 58 . . . . . . Total Part Build Rating 14 | . . . . . . . . . . . . . 14 . . . . . . Parts Repaired . | . . . . . . . . . . . . . . . . . . . . Time . | . . . . . . . . . . . . . . . . . . . . Parts Recycled . | . . . . . . . . . . . . . . . . . . . . Recycled Matter . | . . . . . . . . . . . . . . . . . . . . Retrieved Matter . | . . . . . . . . . . . . . . . . . . . . Retrieved Components . | . . . . . . . . . . . . . . . . . . . . Parts Scanalyzed . | . . . . . . . . . . . . . . . . . . . . Part Schematics Acquired . | . . . . . . . . . . . . . . . . . . . . Parts Damaged . | . . . . . . . . . . . . . . . . . . . . Bothacking | -11 -10 -10 -10 -9 -8 -8 -8 -8 -7 -7 -6 -6 -5 -5 -4 -4 -3 -3 -2 ------------ Run | Scr Mat Min Exi Min Mat Gar Mat Gar Fac Gar Fac Gar Fac Gar Fac Gar Res Gar Res Used RIF Installer 7 | . . . . . . 1 . 1 . 1 . 1 . 1 . 1 . 1 . Coupler Efficiency 2 | . . . . . . . . 1 . . . . . . . . . 1 . Hotswap 1 | . . . . . . . . . . . . . . . . 1 . . . Threat Obfuscator 1 | . . . . . . . . . . . . 1 . . . . . . . Robot Detection 1 | . . . . . . . . . . . . . . 1 . . . . . Autooverride 1 | . . . . . . . . . . 1 . . . . . . . . . Robots Hacked 34 | . . . . . . . . . 2 . 1 3 8 11 . . . 6 3 Non-combat 1 | . . . . . . . . . . . . . 1 . . . . . . Combat 33 | . . . . . . . . . 2 . 1 3 7 11 . . . 6 3 Autooverrided 11 | . . . . . . . . . . . 1 . 2 3 . . . 2 3 Robot Hacks Applied 24 | . . . . . . . . . 2 . . 3 7 8 . . . 4 . parse_system 2 | . . . . . . . . . 1 . . . 1 . . . . . . purge_threat 1 | . . . . . . . . . . . . . 1 . . . . . . spike_heat 1 | . . . . . . . . . . . . . 1 . . . . . . overload_power 2 | . . . . . . . . . . . . . . 2 . . . . . amplify_resonance 3 | . . . . . . . . . . . . . . . . . . 3 . reboot_system 1 | . . . . . . . . . . . . . 1 . . . . . . overwrite_iff 8 | . . . . . . . . . . . . 2 . 5 . . . 1 . formatsys_high 6 | . . . . . . . . . 1 . . 1 3 1 . . . . . Relay Couplers Released 27 | . . . . . . . . 3 4 3 . 5 . 8 . . . 4 . Machine Destruction 23 | . . . . . . . . 3 . 3 . 5 . 8 . . . 4 . Programmers 4 | . . . . . . . . . 4 . . . . . . . . . . Attached 20 | . . . . . . . . . 1 1 . 1 3 2 1 . 1 3 7 Robots Rewired 3 | . . . . . . . . . . . . . . 3 . . . . . Allies Hacked 1 | . . . . . . . . . . . . . . . 1 . . . . Hacks Repelled . | . . . . . . . . . . . . . . . . . . . . Allies | -11 -10 -10 -10 -9 -8 -8 -8 -8 -7 -7 -6 -6 -5 -5 -4 -4 -3 -3 -2 -------- Run | Scr Mat Min Exi Min Mat Gar Mat Gar Fac Gar Fac Gar Fac Gar Fac Gar Res Gar Res Total Allies 36 | . . 5 . . 3 . . . 1 . 1 3 5 12 . . . 3 3 Largest Group 5 | . . 5 5 3 3 3 1 . 1 . 1 2 4 3 3 . . 2 1 Highest-Rated Group 151 | . . 84 84 40 48 48 14 . 20 . 29 76 151 123 123 . . 49 64 Highest-Rated Ally 64 | . . 31 31 16 16 16 14 . 20 . 29 47 49 41 41 . . 30 64 Total Orders . | . . . . . . . . . . . . . . . . . . . . Ally Attacks 201 | . . 12 . 8 37 23 . . 3 . 1 7 48 37 17 . . 8 . Total Damage 4143 | . . 127 . 89 382 305 . . 60 . . 163 855 926 1079 . . 157 . Kills 25 | . . 3 . . 4 3 . . . . . 2 6 3 4 . . . . Allies Corrupted . | . . . . . . . . . . . . . . . . . . . . Allies Melted . | . . . . . . . . . . . . . . . . . . . . Intel | -11 -10 -10 -10 -9 -8 -8 -8 -8 -7 -7 -6 -6 -5 -5 -4 -4 -3 -3 -2 ------- Run | Scr Mat Min Exi Min Mat Gar Mat Gar Fac Gar Fac Gar Fac Gar Fac Gar Res Gar Res Robot Analysis Total . | . . . . . . . . . . . . . . . . . . . . Derelict Logs Recovered 3 | . . 2 . 1 . . . . . . . . . . . . . . . Drone Launches . | . . . . . . . . . . . . . . . . . . . . Drone Recoveries . | . . . . . . . . . . . . . . . . . . . . Exploration | -11 -10 -10 -10 -9 -8 -8 -8 -8 -7 -7 -6 -6 -5 -5 -4 -4 -3 -3 -2 ------------- Run | Scr Mat Min Exi Min Mat Gar Mat Gar Fac Gar Fac Gar Fac Gar Fac Gar Res Gar Res Turns Passed 16601 | 74 495 866 433 335 532 542 1284 416 1746 458 553 1379 458 2030 1092 1729 846 699 634 Spaces Moved 7294 | 49 375 697 247 173 176 251 429 157 786 216 261 611 178 692 463 601 334 250 348 Core 24 | 4 . . . . . . . . . . . . . . . . . 4 16 Treads 3886 | . . 121 247 173 61 106 429 157 124 . . 182 178 692 463 601 334 18 . Legs 158 | . . . . . . . . . . . . . . . . . . 117 41 Wheels 2962 | 45 375 576 . . 115 145 . . 662 216 261 429 . . . . . 111 27 Hover . | . . . . . . . . . . . . . . . . . . . . Flight 264 | . . . . . . . . . . . . . . . . . . . 264 Fastest Speed 31 | 50 90 90 160 180 140 140 220 220 140 150 160 150 200 200 200 180 180 110 31 Average Speed 171 | 90 90 102 170 180 167 192 220 220 160 152 160 182 200 248 203 204 187 165 60 Slowest Speed 1350 | 100 90 160 180 180 280 300 220 220 240 160 160 320 200 280 220 240 200 1350 600 Overloaded Moves . | . . . . . . . . . . . . . . . . . . . . Propulsion Burnouts . | . . . . . . . . . . . . . . . . . . . . Robots Hopped . | . . . . . . . . . . . . . . . . . . . . Cave-ins Triggered . | . . . . . . . . . . . . . . . . . . . . Exploration Rate (%) 37 | 4 46 84 61 36 16 49 43 34 25 49 8 67 5 74 16 74 13 45 9 Regions Visited 19 Branch Regions 3 Pre-discovered Areas 3 | . . 2 1 . . . . . . . . . . . . . . . . Known Exits Taken 7 | . . . . . 1 . 1 . 1 . 1 . 1 . 1 . 1 . . Unknown Exits Taken 5 | 1 1 1 1 1 . . . . . . . . . . . . . . . Scrap Searched 2 | . . 2 . . . . . . . . . . . . . . . . . Spaces Dug 27 | . . . . . . . . . 3 . . 1 2 . . . 3 5 13 Terrain Destroyed 161 | . . 24 . . . 11 . 9 17 8 5 12 2 10 26 10 6 8 13 Melee 21 | . . . . . . . . . . . . . . . . . 3 5 13 Projectile 40 | . . . . . . . . . 13 . 5 3 2 1 . 10 3 3 . AOE 100 | . . 24 . . . 11 . 9 4 8 . 9 . 9 26 . . . . Terrain Rammed . | . . . . . . . . . . . . . . . . . . . . Walls Destroyed . | . . . . . . . . . . . . . . . . . . . . Machines Disabled . | . . . . . . . . . . . . . . . . . . . . Actions | -11 -10 -10 -10 -9 -8 -8 -8 -8 -7 -7 -6 -6 -5 -5 -4 -4 -3 -3 -2 --------- Run | Scr Mat Min Exi Min Mat Gar Mat Gar Fac Gar Fac Gar Fac Gar Fac Gar Res Gar Res Total 9902 | 65 499 794 261 197 361 300 627 190 1093 292 327 785 270 937 572 897 466 389 580 Wait 649 | . 100 18 4 16 121 9 37 . 91 13 5 5 49 5 34 62 18 14 48 Move 7280 | 48 374 696 246 172 175 250 428 156 786 215 261 610 178 691 463 600 334 249 348 Hop . | . . . . . . . . . . . . . . . . . . . . Pick Up 261 | 6 3 6 5 9 12 8 22 2 28 4 10 28 7 28 13 39 11 9 11 Fast Attach 95 | 6 1 2 1 . 5 1 6 2 18 . . 7 . 1 5 3 7 8 22 Attach 160 | . 1 8 . . 4 2 6 1 16 7 4 13 4 17 3 26 15 11 22 Detach 44 | . . 1 1 . 5 . 3 . 14 . . 3 . 3 3 . 3 . 8 Swap 110 | . 1 2 1 . 5 2 7 5 14 4 7 15 7 9 5 9 4 7 6 Drop 176 | . 2 1 3 . 2 1 26 1 26 1 2 25 5 14 19 21 5 8 14 Fire 800 | 5 17 39 . . 32 7 92 21 100 32 38 62 18 101 26 117 48 40 5 Melee 143 | . . . . . . . . . . . . 1 . . . . 14 38 90 Ram . | . . . . . . . . . . . . . . . . . . . . Kick . | . . . . . . . . . . . . . . . . . . . . Crush 17 | . . 1 . . . . . . . . . . . . . 9 7 . . Escape Stasis 77 | . . . . . . 20 . 2 . 16 . 16 . 2 . 10 . 5 6 Rewire 90 | . . 20 . . . . . . . . . . 2 66 1 1 . . . Trap . | . . . . . . . . . . . . . . . . . . . . Miscellaneous . | . . . . . . . . . . . . . . . . . . . . Route ------- -11/Scrapyard -10/Materials (discovered 2 exits: [*Min x2]) -10/Mines (discovered 2 exits: [*Mat] / *Exi) -10/Exiles -9/Mines -8/Materials -8/Garrison -8/Materials -8/Garrison -7/Factory (discovered 3 exits: Low x2 / Gar) -7/Garrison -6/Factory (discovered 3 exits: *Fac / *Low / Gar) -6/Garrison (discovered 3 exits: *Fac x3) -5/Factory -5/Garrison (discovered 3 exits: *Fac x3) -4/Factory (discovered 4 exits: Upp x2 / Arm / Gar) -4/Garrison (discovered 3 exits: *Res x3) -3/Research -3/Garrison -2/Research History --------- Turn | Location | Event 8 | -11/Scrapyard | Discovered new exit (range 15) 75 | -11/Scrapyard | Entered Materials 316 | -10/Materials | Build established: Mutant 467 | -10/Materials | Discovered new exit (range 7) 477 | -10/Materials | Discovered new exit (range 11) 570 | -10/Materials | Entered Mines 578 | -10/Mines | Assembled infested the area 611 | -10/Mines | Core integrity fell below 50% 771 | -10/Mines | Discovered new exit (range 3) 814 | -10/Mines | Learned Materials security intel 835 | -10/Mines | Learned location of Storage (-9) 845 | -10/Mines | Assisted by bots powering up and referring to "LRC-V3" 1076 | -10/Mines | Discovered new exit (range 5) 1198 | -10/Mines | Core integrity fell below 20% 1436 | -10/Mines | Entered Exiles 1436 | -10/Exiles | Accompanied by 5 allies 1466 | -10/Exiles | Led the pair of lost Derelicts to a safe place 1476 | -10/Exiles | Met 8R-AWN 1502 | -10/Exiles | Met EX-HEX 1568 | -10/Exiles | Met EX-DEC 1577 | -10/Exiles | Learned location of Zion (-6) 1718 | -10/Exiles | Met EX-BIN 1850 | -10/Exiles | Discovered new exit (range 10) 1869 | -10/Exiles | Entered Mines 1869 | -9/Mines | Accompanied by 3 allies 1930 | -9/Mines | Build established: Hauler-Mutant 1959 | -9/Mines | Met a Derelict bent on vengeance 2094 | -9/Mines | Learned Materials garrison access intel 2115 | -9/Mines | Joined a pair of Derelicts in attacking an 0b10 outpost 2171 | -9/Mines | Discovered new exit (range 15) 2204 | -9/Mines | Entered Materials 2204 | -8/Materials | Accompanied by 3 allies 2204 | -8/Materials | Evolved 4 slots: Utility x4 2206 | -8/Materials | Loaded intel: 1 garrison access location 2393 | -8/Materials | Garrison activated, responded to threat 2566 | -8/Materials | Identified exit to Garrison 2736 | -8/Materials | Entered Garrison 2736 | -8/Garrison | Accompanied by 3 allies 2840 | -8/Garrison | Triggered checkpoint 3034 | -8/Garrison | Triggered checkpoint 3035 | -8/Garrison | Triggered checkpoint 3159 | -8/Garrison | Discovered new exit (range 9) 3197 | -8/Garrison | Installed Relay Interface Framework 3278 | -8/Garrison | Entered Materials 3278 | -8/Materials | Accompanied by 1 ally 4478 | -8/Materials | First assault squad dispatched 4523 | -8/Materials | Identified exit to Garrison 4562 | -8/Materials | Entered Garrison 4573 | -8/Garrison | Expanded RIF knowledge: Coupler Efficiency 4632 | -8/Garrison | Triggered checkpoint 4691 | -8/Garrison | Lost 3 parts (1p1u1w) 4700 | -8/Garrison | Garrison Relay disabled 4822 | -8/Garrison | Triggered checkpoint 4832 | -8/Garrison | Core integrity fell below 50% 4848 | -8/Garrison | Triggered checkpoint 4879 | -8/Garrison | Destroyed 10 combat bots 4953 | -8/Garrison | Discovered new exit (range 12) 4978 | -8/Garrison | Entered Factory 4978 | -7/Factory | Evolved 2 slots: Utility x2 5400 | -7/Factory | Lost 6 parts (1p3n2w) 5458 | -7/Factory | Lost 3 parts (2n1w) 5812 | -7/Factory | Found Prototype Launcher 5812 | -7/Factory | Identified Rocket Array 6268 | -7/Factory | Identified exit to Lower Caves 6625 | -7/Factory | System corruption reached 10% 6629 | -7/Factory | Garrison activated, responded to threat 6724 | -7/Factory | Identified exit to Garrison 6724 | -7/Factory | Entered Garrison 6824 | -7/Garrison | Triggered checkpoint 6832 | -7/Garrison | Triggered checkpoint 6871 | -7/Garrison | Lost 3 parts (1n2w) 6957 | -7/Garrison | Discovered new exit (range 13) 6975 | -7/Garrison | Identified exit to Factory 6988 | -7/Garrison | Expanded RIF knowledge: Autooverride 7036 | -7/Garrison | Triggered checkpoint 7110 | -7/Garrison | Garrison Relay disabled 7182 | -7/Garrison | Entered Factory 7182 | -6/Factory | Evolved 2 slots: Utility x2 7308 | -6/Factory | Discovered new exit (range 7) 7328 | -6/Factory | Discovered new exit (range 12) 7330 | -6/Factory | Identified exit to Lower Caves 7346 | -6/Factory | Identified exit to Factory 7413 | -6/Factory | Build established: Bothacker-Mutant 7635 | -6/Factory | Garrison activated, responded to threat 7735 | -6/Factory | Identified exit to Garrison 7735 | -6/Factory | Entered Garrison 7743 | -6/Garrison | Expanded RIF knowledge: Threat Obfuscation 7850 | -6/Garrison | Spotted B-75 Beast 7850 | -6/Garrison | Spotted B-75 Beast 7912 | -6/Garrison | Garrison Relay disabled 8223 | -6/Garrison | Discovered exit to Factory (range 23) 8284 | -6/Garrison | Triggered checkpoint 8343 | -6/Garrison | Discovered exit to Factory (range 11) 8448 | -6/Garrison | Triggered checkpoint 8504 | -6/Garrison | Discovered exit to Factory (range 13) 8640 | -6/Garrison | Destroyed B-75 Beast 8706 | -6/Garrison | Destroyed B-75 Beast 8725 | -6/Garrison | Lost 4 parts (1n1u2w) 9114 | -6/Garrison | Entered Factory 9114 | -5/Factory | Evolved 2 slots: Utility x2 9446 | -5/Factory | Fabricated Quantum Capacitor (x2) 9519 | -5/Factory | Local fabrication network quarantined 9572 | -5/Factory | Identified exit to Garrison 9572 | -5/Factory | Entered Garrison 9582 | -5/Garrison | Expanded RIF knowledge: Robot Detection 9654 | -5/Garrison | Triggered checkpoint 9715 | -5/Garrison | Garrison Relay disabled 9834 | -5/Garrison | Triggered checkpoint 10007 | -5/Garrison | Spotted B-75 Beast 10040 | -5/Garrison | Destroyed B-75 Beast 10070 | -5/Garrison | Discovered new exit (range 13) 10086 | -5/Garrison | Lost 10 parts (1p3n6w) 10146 | -5/Garrison | Triggered checkpoint 10209 | -5/Garrison | Garrison Relay disabled 10304 | -5/Garrison | Build established: Hauler-Mutant 10358 | -5/Garrison | Identified exit to Factory 10488 | -5/Garrison | Triggered checkpoint 10614 | -5/Garrison | Discovered exit to Factory (range 15) 11230 | -5/Garrison | Discovered exit to Factory (range 10) 11602 | -5/Garrison | Entered Factory 11602 | -4/Factory | Accompanied by 3 allies 11602 | -4/Factory | Evolved 2 slots: Utility x2 12646 | -4/Factory | Identified exit to Upper Caves 12646 | -4/Factory | Identified exit to Armory 12694 | -4/Factory | Identified exit to Garrison 12694 | -4/Factory | Entered Garrison 12731 | -4/Garrison | Phase Generator disabled 12746 | -4/Garrison | System corruption reached 10% 12826 | -4/Garrison | Lost 13 parts (1p1n8u3w) 13150 | -4/Garrison | Found Gamma Bomb Array 13154 | -4/Garrison | Found Gamma Bomb Array 13318 | -4/Garrison | Triggered checkpoint 13318 | -4/Garrison | Spotted B-86 Titan 13412 | -4/Garrison | Core integrity fell below 50% 13419 | -4/Garrison | Destroyed B-86 Titan 13436 | -4/Garrison | Lost 7 parts (2p1n3u1w) 13525 | -4/Garrison | Discovered new exit (range 14) 13585 | -4/Garrison | Identified exit to Research 13745 | -4/Garrison | Lost 4 parts (2n2w) 14127 | -4/Garrison | Discovered exit to Research (range 13) 14242 | -4/Garrison | Triggered checkpoint 14381 | -4/Garrison | Discovered exit to Research (range 14) 14415 | -4/Garrison | Expanded RIF knowledge: Hotswap 14423 | -4/Garrison | Entered Research 14423 | -3/Research | Evolved 2 slots: Utility x2 14807 | -3/Research | System corruption reached 10% 14820 | -3/Research | Spotted B-86 Titan 14858 | -3/Research | Destroyed B-86 Titan 14884 | -3/Research | Lost 8 parts (1p1n3u3w) 15095 | -3/Research | Found Enh. Force Lance 15098 | -3/Research | Found Enh. Force Lance 15103 | -3/Research | Found Enh. Force Lance 15218 | -3/Research | Garrison activated, responded to threat 15269 | -3/Research | Identified exit to Garrison 15269 | -3/Research | Entered Garrison 15286 | -3/Garrison | Build established: Botlord-Mutant 15294 | -3/Garrison | Triggered checkpoint 15294 | -3/Garrison | Lost 6 parts (1n2u3w) 15359 | -3/Garrison | Garrison Relay disabled 15360 | -3/Garrison | Lost 4 parts (1p1n2u) 15429 | -3/Garrison | Spotted B-86 Titan 15467 | -3/Garrison | Triggered checkpoint 15590 | -3/Garrison | Lost 11 parts (3n7u1w) 15635 | -3/Garrison | Core integrity fell below 50% 15641 | -3/Garrison | Destroyed B-86 Titan 15663 | -3/Garrison | Lost 4 parts (2n1u1w) 15763 | -3/Garrison | Build established: Scavenger-Mutant 15798 | -3/Garrison | Lost 4 parts (4u) 15817 | -3/Garrison | Triggered checkpoint 15938 | -3/Garrison | Discovered new exit (range 10) 15952 | -3/Garrison | Identified exit to Research 15962 | -3/Garrison | Expanded RIF knowledge: Coupler Efficiency 15968 | -3/Garrison | Entered Research 15968 | -2/Research | Evolved 2 slots: Propulsion x2 16047 | -2/Research | Spotted B-90 Cyclops 16072 | -2/Research | Lost 6 parts (2n2u2w) 16381 | -2/Research | Core integrity fell below 50% 16425 | -2/Research | Lost 14 parts (1p5n6u2w) 16434 | -2/Research | Destroyed 12 combat bots 16581 | -2/Research | Core integrity fell below 20% 16602 | -2/Research | Destroyed by G-73 Enforcer with Phase Gun Last Messages --------------- Adv. Signal Interpreter destroyed. Destroyed Hvy. Laser. Com. Wheel destroyed. HS<& 7Z>JWO6>GXWTAIYSK>J4WOCWK/ Acquired 10 matter. Acquired 6 matter. Wheel destroyed. Com. Wheel destroyed. Adv. Target Analyzer destroyed. Enh. Force Lance destroyed. Com. Wheel destroyed. G-73 Enforcer destroyed. Acquired 20 matter. Com. Wheel destroyed. G-73 Enforcer suffers critical hit. Destroyed Myomer Leg. Com. Wheel destroyed. Enh. Force Lance destroyed. Acquired 10 matter. Relay Coupler [Sentry] destroyed. Map ----- +----------------------------------------------------+ | ?????????????????????????????????????????????????? | | ?????????????????????????????????????????????????? | | ?????????????????????????????????????????????????? | | ?????????????????????????????????????????????????? | | ?????????????????????????????????????????????????? | | ?????????????????????????????????????????????????? | | ?????????????????????????????????????????????????? | | ?????????????????????????????????????????????????? | | ?????????????????????????????????????????????????? | | ?????????????????????????????????????????????????? | | ????????????????????? ?????????????????????????? | | ?????????????????s?"" ?????????????????????????? | | ??????????????????s ?????????????????????????? | | ??????????????????? ?????????????????????????? | | ??????????????????? ?????????????????????????? | | ???????????????????# ?????????????????????????? | | ???????????????????# #????+#################### | | ???????????????????# ? | | ???????????????????# ? | | ???????????????????# ? | | ???????????????????# ?? | | ???????????????????# ####################+### | | ???????????????????# *%#|%""""" ## # | | ???????????????????# %%#g%!""F"" ##[ # | | ???????????????????# %%+%g""" "" # ! # | | ???????????????????# %!#@g%%! ##[ # | | ???????????????????# %[#%%%[** ## ""T"" # | | ???????????????????# #%[%!!! ## """"" # | | ???????????????????# #[=[** #" ### | | ???????????????????# ############## #?? | | ???????????????????# ###########?############## | | ???????????????????# #?## # | | ???????????????????# #??# # | | ???????????????????# #### # | | ???????????????????# + # "" | | ???????????????????########### # # "Y | | ?????????????????????????????# # # "" | | ?????????????????????????????#^ ######## | | ?????????????????????????????# #?????## | | ????????????????????????????## #????##"##### | | ??????????????????????####### #??### ##???? | | ??????????????????????# #= #?## "##????? | | ??????????????????????# #?#= * #????? | | ??????????????????????# ### #????? | | ??????????????????????# ! # ###### | | ??????????????????????# # # | | ??????????????????????# # + #? | | ??????????????????????######## # #??""" | | ?????????????????????????????# # #??""" | | ?????????????????????????? ### #######??""" | +----------------------------------------------------+ Best States ------------- Heat Dissipation 122 Coolant Potential 80 Energy Generation 23 Energy Capacity 325 Matter Stores 300 Matter Capacity 300 Sight Range 16 Robot Scan Range 20 Terrain Scan Range 24 Terrain Scan Density 210 Jamming Range 8 Additional Mass Support 9 Armor Coverage 900 Resistance: KI 25 Resistance: TH 30 Resistance: EM 25 Core Shielding 30 Weapon Cycling 20 Evasion (%) 63 Targeting Accuracy 16 Target Analysis 8 Armor Integrity Analysis 66 Recoil Reduction 2 Matter Filtering 30 Energy Filtering 30 Particle Charging 20 Stasis Canceling 2 Relay Coupler Types 391 Relay Coupler Value 5 Item Schematics ----------------- Quantum Capacitor | -6/Factory | Hacked Robot Schematics ------------------ None Fabricated ------------ Quantum Capacitor | x2 | -5/Factory Alien Tech Used ----------------- None Achievements -------------- None Challenges ------------ None Game ------ Seed DisruptionArmorLaser Manual? 0 Play Time 02:26:43 Cumulative 265.8 hours Start 2020.09.22 @ 17:26:40 End 2020.09.25 @ 17:39:59 Sessions 3 Manual Loads 0 Difficulty Rogue Special Mode None Game No. 263 Rogue 263 Adventurer 0 Explorer 0 Win Type - Total 13 Types 9/0/3/1/0/0/0/0/0 Lore% 83 Gallery% 89 Achievement% 73 Wizard Run 0 Options --------- ASCII 0 Keyboard 1 Movement Numpad Keybinds 0 Fullscreen 1 Font 20/SmallcapsGlow Map View 66x50 Tactical HUD 1 Map Filters NONE Filters NONE Steam 1 RUN: a979f5f9-c2d6-45e0-8397-eaed328d8695